[Event "10th Iberoamericano-ch 2024"]
[Site "Linares"]
[Date "2024.09.26"]
[Round "3.1"]
[White "Vallejo Pons, Francisco"]
[Black "Ynojosa Aponte, Felix Jose"]
[Result "1/2-1/2"]
[ECO "B30"]
[WhiteElo "2657"]
[BlackElo "2398"]
[Annotator "TA"]
[PlyCount "57"]
[EventDate "2024.09.25"]
[EventType "swiss"]
[EventCountry "ESP"]
[SourceTitle "playchess.com"]
[Source "ChessBase"]
[SourceQuality "1"]
[TimeControl "5400+30"]

{[%evp 10,57,14,4,28,24,24,22,50,32,41,30,69,72,72,71,72,57,72,47,75,57,67,66,50,-20,0,-16,-25,-62,31,-86,-83,-72,-87,-275,-281,-279,-290,-270,-264,-270,-264,-234,-147,-135,-169,-146,-158,-147]} 1. e4 {[%emt 0:00:06]} c5 {[%emt 0:00:40]} 2. Nf3 {[%emt 0:00:10]} Nc6 {[%emt 0:00:02]} 3. Bb5 {[%emt 0:00:59]} e6 {[%emt 0:00:03]} 4. Bxc6 {[%emt 0:00:53]} bxc6 {[%emt 0:00:04]} 5. d3 {[%emt 0:00:09]} Ne7 {[%emt 0:00:03]} 6. Qe2 {[%emt 0:00:16]} Qc7 {[%emt 0:00:03]} 7. h4 {[%emt 0:04:09][%cal Bh2h4,Bh4h5][%mdl 32]} e5 {[%emt 0:04:04]} 8. h5 {[%emt 0:02:29]} h6 {[%emt 0:00:22] The position is equal.} 9. b3 {[%emt 0:07:02]} d6 {[%emt 0:00:53]} 10. Nbd2 {[%emt 0:02:11][%cal Bb1d2,Bd2c4,Bc4e3][%mdl 32]} g5 {[%emt 0:04:21]} 11. hxg6 {[%emt 0:00:26]} fxg6 {[%emt 0:00:55]} 12. Nc4 {[%emt 0:05:52]} Bg7 {[%emt 0:01:04]} 13. Bd2 {[%emt 0:02:16]} a5 {[%emt 0:04:11]} 14. a4 {[%emt 0:01:22] White has more active pieces. The black rooks are passive.} Bg4 {[%emt 0:00:55]} 15. O-O-O {[%emt 0:08:51]} d5 $1 {[%emt 0:01:11]} 16. Ne3 {[%emt 0:05:25] Excellent horsemanship.} Be6 {[%emt 0:00:42]} 17. Nh2 {[%emt 0:08:10] [#]} (17. Kb1 $14) 17... c4 $1 {[%emt 0:02:24]} 18. dxc4 {[%emt 0:01:39]} d4 {[%emt 0:00:05]} 19. Nef1 {[%emt 0:02:11]} Qd6 {[%emt 0:07:34]} (19... Nc8 $1 $15) 20. Kb1 {[%emt 0:02:46]} (20. Kb2 $1 $14) 20... Nc8 $1 $17 {[%emt 0:03:18] ...Nb6 would now be deadly.} 21. Bc1 {[%emt 0:07:51] [#]} Nb6 $1 {[%emt 0:02:49][%cal Ob6a4]} 22. Ka2 $2 {[%emt 0:03:47] [#] Now White is beyond hope.} (22. Qd3 $17 {was called for.}) 22... Nxa4 $1 $19 {[%emt 0:10:04][%mdl 512]} 23. bxa4 {[%emt 0:00:42] Ba3 is the strong threat.} Qb4 {[%emt 0:00:14][%csl LRa4,LRc4]} 24. Nd2 {[%emt 0:00:22] aiming for Ba3.} Qxa4+ {[%emt 0:03:25]} 25. Ba3 {[%emt 0:01:58] And now Rb1 would win.} Qxc2+ {[%emt 0:01:17]} 26. Ka1 {[%emt 0:04:41]} d3 {[%emt 0:26:16] Black is clearly better.} 27. Qf3 {[%emt 0:03:54]} Rb8 {[%emt 0:08:17] ( -> ...Qc3+)} 28. Rc1 {[%emt 0:03:53]} Qxd2 {[%emt 0:03:41]} 29. Rhd1 {[%emt 0:00:16] Weighted Error Value: White=0.26 (precise) /Black=0.12 (very precise) .  Loses game:     	White=1     	---        Mistake:       	White=2     	Black=1      Inaccurate:     	White=1     	Black=4      OK:         	White=8     	Black=7      Best:        	White=4     	---        Strong:       	---       	Black=3      Brilliant:      	---       	Black=1} 1/2-1/2

[Event "10th Iberoamericano-ch 2024"]
[Site "Linares"]
[Date "2024.09.26"]
[Round "3.2"]
[White "Leiva, Gianmarco"]
[Black "Salinas Herrera, Pablo"]
[Result "0-1"]
[ECO "C50"]
[WhiteElo "2389"]
[BlackElo "2479"]
[Annotator "TA"]
[PlyCount "77"]
[EventDate "2024.09.25"]
[EventType "swiss"]
[EventCountry "ESP"]
[SourceTitle "playchess.com"]
[Source "ChessBase"]
[SourceQuality "1"]
[TimeControl "5400+30"]

{[%evp 14,77,8,10,5,6,9,32,25,-4,15,-27,-18,-25,-20,-105,-99,-102,-97,-79,43,-50,59,-12,51,0,-23,-199,-149,-176,-38,-194,9,-305,-322,-371,-374,-352,-381,-369,-383,-375,-368,-611,-605,-605,-591,-666,-634,-590,-548,-564,-435,-432,-383,-566,-429,-424,-406,-522,-525,-591,-591,-635,-619,-1052]} 1. e4 {[%emt 0:09:45]} e5 {[%emt 0:00:05]} 2. Nf3 {[%emt 0:00:06]} Nc6 {[%emt 0:00:03]} 3. Bc4 {[%emt 0:00:09]} Bc5 {[%emt 0:00:04]} 4. O-O {[%emt 0:01:07]} Nf6 {[%emt 0:00:05]} 5. d3 {[%emt 0:00:25]} d6 {[%emt 0:00:07]} 6. Bg5 {[%emt 0:09:48]} h6 {[%emt 0:00:07]} 7. Bh4 {[%emt 0:00:04]} a6 {[%emt 0:03:57] C50: Hungarian Defence and Giuoco Pianissimo.} 8. c3 {[%emt 0:01:14]} Ba7 {[%emt 0:00:20]} 9. Nbd2 {[%emt 0:03:18]} g5 {[%emt 0:06:05]} 10. Bg3 {[%emt 0:00:06]} Nd7 {[%emt 0:03:15]} 11. Re1 $146 {[%emt 0:15:00]} ({Predecessor:} 11. b4 Nf8 12. Qb3 Qe7 13. b5 Na5 14. Qb4 axb5 15. Bxb5+ c6 16. d4 Bb8 17. Be2 {1-0 Firouzja,A (2744)-Praggnanandhaa,R (2757) Bucharest Superbet Classic 4th playoff rapid 2024 (1)}) 11... Ne7 {[%emt 0:04:54]} 12. Nf1 {[%emt 0:06:53]} Ng6 {[%emt 0:00:39]} 13. h3 $1 {[%emt 0:06:21]} h5 {[%emt 0:10:53]} 14. d4 {[%emt 0:00:42]} (14. Qd2 $11 {remains equal.} Nb6 15. Bb3 (15. Nxg5 $2 Nxc4 16. dxc4 h4 $19)) 14... g4 $17 {[%emt 0:04:34]} 15. hxg4 {[%emt 0:01:04]} hxg4 {[%emt 0:00:05]} 16. N3h2 {[%emt 0:00:05]} Qg5 {[%emt 0:01:01]} (16... Nf6 $1 $17) 17. Nxg4 {[%emt 0:02:48]} (17. Qxg4 $14 Qe7 18. Qd1) 17... Ndf8 {[%emt 0:07:57]} (17... Nb6 $15 18. Be2 Be6) 18. Nfe3 {[%emt 0:06:52]} (18. Nfh2 $1 $14) 18... Bd7 {[%emt 0:00:58] [#]} (18... Be6 $1 $11) 19. Nf5 {[%emt 0:13:38]} ({White should try} 19. dxe5 $1 $14 dxe5 20. Qf3) 19... O-O-O $11 {[%emt 0:07:29]} 20. Nge3 $2 {[%emt 0:01:25] [#]} (20. Bxf7 $11 Ne7 21. Nxe7+ (21. dxe5 Nxf5 22. exf5 Bxf5 $17) 21... Qxe7 22. Qf3) 20... Rh7 $1 $19 {[%emt 0:01:53]} 21. Bd5 {[%emt 0:05:43] [#]} Be6 {[%emt 0:20:17]} (21... Ne6 $1 $19 22. Qb3 Bb5 23. Bxe6+ (23. a4 $2 Rdh8 $19) 23... fxe6 24. Qxe6+ Bd7) 22. dxe5 $2 {[%emt 0:09:11]} (22. Qg4 $15 Qf6 23. Red1) 22... Nd7 $2 {[%emt 0:01:51]} (22... dxe5 $19 {Hoping for ...Bxe3.} 23. Qf3 (23. Qb3 $2 Rxd5 24. exd5 Bxf5 $19) 23... Nd7) 23. Bxe6 $2 {[%emt 0:01:54][%mdl 8192]} (23. exd6 $11 {and White stays safe.} Rdh8 24. Kf1 (24. dxc7 $2 Rh1#) 24... Bxf5 (24... Bxe3 25. Nxe3 Rh1+ 26. Ke2 $16) 25. exf5 (25. Nxf5 $2 Nf4 $17) 25... Bxe3 26. Qf3 (26. fxe3 Qxg3 27. fxg6 fxg6 $17) (26. fxg6 Rh1+ 27. Ke2 Rxe1+ 28. Qxe1 Qxd5 $11) 26... Rh1+ 27. Ke2 Nf4+ 28. Bxf4 Rxe1+ 29. Rxe1 Bxf4 30. Bxb7+ Kb8 31. Ba8 (31. dxc7+ Bxc7 32. Bxa6 Re8+ 33. Kf1 Rxe1+ 34. Kxe1 Nc5 $11)) 23... fxe6 $19 {[%emt 0:00:16]} 24. Nd4 {[%emt 0:04:08]} dxe5 {[%emt 0:05:11]} (24... Ngxe5 $2 25. Bxe5 (25. Nxe6 $2 {loses.} Qh6 $19) 25... Nxe5 (25... Qh6 $2 26. Bh2 $17) 26. Kf1 $19) 25. Nxe6 {[%emt 0:00:41]} Rdh8 {[%emt 0:00:21]} 26. Kf1 {[%emt 0:00:01]} ({Not} 26. Qxd7+ $2 Kxd7 $19) 26... Qf6 {[%emt 0:00:05]} 27. Qg4 {[%emt 0:00:59]} Bxe3 {[%emt 0:00:11]} 28. Rxe3 $2 {[%emt 0:00:08]} (28. Rad1 Bf4 29. Ke2) 28... Rh1+ $19 {[%emt 0:00:05]} 29. Ke2 {[%emt 0:00:03]} Rxa1 {[%emt 0:00:17]} 30. Nc5 {[%emt 0:00:41]} Ngf8 {[%emt 0:01:40]} 31. Rd3 {[%emt 0:01:10]} Qe7 {[%emt 0:00:27]} 32. Rd5 {[%emt 0:00:28]} b6 {[%emt 0:01:54]} 33. Rxe5 {[%emt 0:00:31]} Qf7 {[%emt 0:00:04]} 34. Nd3 {[%emt 0:00:31]} (34. Qf5 $142 Qc4+ (34... Qxa2 35. Re8#) 35. Nd3) 34... Rg8 {[%emt 0:00:54]} 35. Qf5 {[%emt 0:00:29]} Qxf5 {[%emt 0:02:37]} (35... Qxa2 $2 36. Re8+ Kb7 37. Qf3 $17) 36. Rxf5 {[%emt 0:00:26]} Rxa2 {[%emt 0:00:04]} 37. Rf7 {[%emt 0:00:05]} Ne6 {[%emt 0:00:04]} 38. Ke3 {[%emt 0:00:12]} Nec5 {[%emt 0:00:10]} 39. Kd4 0-1

[Event "10th Iberoamericano-ch 2024"]
[Site "Linares"]
[Date "2024.09.26"]
[Round "3.3"]
[White "Flores Quillas, Diego Saul Rodri"]
[Black "Horcajuelo Rocamora, Martin"]
[Result "1-0"]
[ECO "B90"]
[WhiteElo "2451"]
[BlackElo "2394"]
[Annotator "TA"]
[PlyCount "93"]
[EventDate "2024.09.25"]
[EventType "swiss"]
[EventCountry "ESP"]
[SourceTitle "playchess.com"]
[Source "ChessBase"]
[SourceQuality "1"]
[TimeControl "5400+30"]

{[%evp 12,93,6,6,39,21,35,24,24,35,25,21,29,21,57,7,10,10,14,13,15,7,12,-21,-5,-5,-22,-26,-27,-41,22,31,17,13,88,16,37,39,85,81,91,76,81,64,231,229,227,213,210,189,612,612,612,612,597,586,579,572,572,572,572,572,572,572,549,536,519,378,3210,3495,4786,4786,29941,9942,29970,29971,29970,29971,29970,29971,29970,29970,29969,29970]} 1. e4 {[%emt 0:06:44]} c5 {[%emt 0:00:02]} 2. Nf3 {[%emt 0:00:06]} d6 {[%emt 0:00:07]} 3. d4 {[%emt 0:00:02]} cxd4 {[%emt 0:00:09]} 4. Nxd4 {[%emt 0:00:03]} Nf6 {[%emt 0:00:11]} 5. Nc3 {[%emt 0:00:07]} a6 {[%emt 0:00:08]} 6. h3 {[%emt 0:00:06]} e5 {[%emt 0:00:07]} 7. Nde2 {[%emt 0:00:07]} h5 {[%emt 0:00:08]} 8. g3 {[%emt 0:00:04]} Be7 {[%emt 0:00:17]} 9. Bg2 {[%emt 0:00:05]} b5 {[%emt 0:00:17] White has an edge.} 10. Nd5 {[%emt 0:00:07]} Nxd5 {[%emt 0:00:06]} 11. Qxd5 {[%emt 0:00:05]} Ra7 {[%emt 0:00:09]} 12. Be3 {[%emt 0:00:05]} Rb7 {[%emt 0:00:07]} 13. O-O {[%emt 0:00:11]} (13. O-O-O $14) 13... Nd7 $11 {[%emt 0:07:03]} 14. Qd2 {[%emt 0:00:06]} O-O {[%emt 0:01:09]} 15. Nc3 {[%emt 0:05:29]} Nf6 {[%emt 0:00:12]} 16. Rfc1 {[%emt 0:02:36]} Be6 {[%emt 0:04:44]} 17. Nd5 {[%emt 0:00:30]} Nxd5 {[%emt 0:12:42]} 18. exd5 {[%emt 0:00:07]} Bd7 {[%emt 0:03:42]} 19. c4 {[%emt 0:00:23]} bxc4 {[%emt 0:01:10]} 20. Rxc4 {[%emt 0:00:07]} Qb8 {[%emt 0:00:24]} (20... f5 $15) 21. b3 {[%emt 0:01:18]} Rc8 {[%emt 0:02:02]} 22. Rac1 $36 {[%emt 0:00:15][%mdl 2048] Black is under pressure.} Rbc7 {[%emt 0:04:33]} (22... Rxc4 $11 23. Rxc4 g6) 23. Qa5 {[%emt 0:04:42] White is more active.} (23. Rc6 $16) 23... Rxc4 {[%emt 0:07:44]} 24. bxc4 {[%emt 0:00:07]} h4 {[%emt 0:07:32]} (24... f5 $14) 25. g4 $16 {[%emt 0:01:33]} ({Much worse is} 25. Qxa6 hxg3 26. fxg3 Bf8 $11) 25... f5 {[%emt 0:02:39]} 26. gxf5 {[%emt 0:02:59]} Bxf5 {[%emt 0:00:22]} 27. Qxa6 {[%emt 0:00:59]} Qa8 $2 {[%emt 0:07:12] [#] A mistake that costs the game.} ({Black should play} 27... Qc7 $1 $14) 28. Qxa8 $18 {[%emt 0:03:32]} Rxa8 {[%emt 0:00:09]} 29. c5 {[%emt 0:00:43]} Rxa2 {[%emt 0:04:53]} 30. c6 {[%emt 0:00:09]} Rc2 $2 {[%emt 0:02:17]} (30... Kf7 31. c7 Ra8) 31. Rxc2 {[%emt 0:03:24]} Bxc2 {[%emt 0:00:07][%mdl 4096] Endgame. KBB-KBB} 32. c7 {[%emt 0:00:34] Wards off Bd8} Bf5 {[%emt 0:00:12]} 33. Bf1 {[%emt 0:00:03]} Bc8 {[%emt 0:00:09]} 34. Be2 {[%emt 0:00:17]} Bxh3 {[%emt 0:04:18]} 35. Ba6 {[%emt 0:00:04] Against Bc8} Kf7 {[%emt 0:04:07]} 36. Kh2 {[%emt 0:00:07]} Bd7 {[%emt 0:00:50]} 37. c8=Q {[%emt 0:00:08]} Bxc8 {[%emt 0:00:03]} 38. Bxc8 {[%emt 0:00:04]} Kf6 {[%emt 0:00:38]} 39. Kh3 {[%emt 0:01:46][%cal Oh3g4] [#] Strongly threatening Kg4!} e4 $2 {[%emt 0:00:58]} (39... Kf7 40. Be6+ Ke8) 40. Bd4+ {[%emt 0:01:24]} Kg5 {[%emt 0:00:05]} 41. Bxg7 {[%emt 0:00:14] White wants to mate with Bd4.} Kf4 {[%emt 0:00:09]} 42. Bd4 {[%emt 0:01:13]} Kf3 {[%emt 0:03:07]} 43. Be3 {[%emt 0:00:24][%csl Gh3][%cal Rc8g4] White mates.} Ke2 {[%emt 0:00:07]} 44. Ba6+ {[%emt 0:00:16]} Ke1 {[%emt 0:00:44]} 45. Kg4 {[%emt 0:00:20]} Bf6 {[%emt 0:00:16]} 46. Bc8 {[%emt 0:01:11]} Kf1 {[%emt 0:00:31]} 47. Bf5 {[%emt 0:00:19] Weighted Error Value: White=0.09 (flawless) /Black=0.64.  Loses game:     	---       	Black=1      Mistake:       	White=2     	Black=5      Inaccurate:     	White=1     	Black=1      OK:         	White=10    	Black=11     Best:        	White=5     	Black=2} 1-0

[Event "10th Iberoamericano-ch 2024"]
[Site "Linares"]
[Date "2024.09.26"]
[Round "3.4"]
[White "Garrido Outon, Alex"]
[Black "Perea Fruet, Lorenzo"]
[Result "1-0"]
[ECO "C70"]
[WhiteElo "2448"]
[BlackElo "2389"]
[Annotator "TA"]
[PlyCount "105"]
[EventDate "2024.09.25"]
[EventType "swiss"]
[EventCountry "ESP"]
[SourceTitle "playchess.com"]
[Source "ChessBase"]
[SourceQuality "1"]
[TimeControl "5400+30"]

{[%evp 31,105,58,56,58,56,33,52,41,120,114,119,116,123,120,108,106,133,116,139,133,154,157,155,154,232,229,237,238,258,261,267,257,307,309,297,299,353,347,343,339,452,458,419,310,343,286,402,401,402,402,425,431,449,449,445,434,397,398,389,295,848,790,827,824,12841,1620,29959,12847,29959,29964,29983,29984,29983,29978,29978,29978]} 1. e4 {[%emt 0:00:09]} e5 {[%emt 0:00:24]} 2. Nf3 {[%emt 0:00:11]} Nc6 {[%emt 0:00:05]} 3. Bb5 {[%emt 0:00:06]} a6 {[%emt 0:00:03]} 4. Ba4 {[%emt 0:00:06]} Nge7 {[%emt 0:00:04]} 5. c3 {[%emt 0:01:07]} Ng6 {[%emt 0:00:59]} 6. d4 {[%emt 0:00:39] C70: Ruy Lopez: 3...a6 4 Ba4, Norwegian and Delayed Schliemann.} exd4 {[%emt 0:07:03]} 7. cxd4 {[%emt 0:00:51]} Bb4+ {[%emt 0:01:14]} 8. Nc3 {[%emt 0:00:45]} O-O {[%emt 0:06:55]} 9. O-O {[%emt 0:02:16]} Bxc3 {[%emt 0:05:47]} 10. bxc3 {[%emt 0:00:09]} d6 {[%emt 0:02:09]} 11. Bg5 {[%emt 0:10:45]} f6 $146 {[%emt 0:02:43]} ({Predecessor:} 11... Nce7 12. Re1 h6 13. Be3 Bg4 14. h3 Bd7 15. Bb3 Be6 16. d5 Bd7 17. g4 Ne5 {1-0 Kvam,A (2026)-Simonsen,S (1547) As Autum 2018 (3)}) 12. Bd2 {[%emt 0:00:53]} Kh8 {[%emt 0:03:03]} 13. Re1 {[%emt 0:01:44]} Bd7 {[%emt 0:08:16]} 14. c4 {[%emt 0:10:21]} Bg4 {[%emt 0:04:40]} 15. Bxc6 {[%emt 0:00:14]} bxc6 {[%emt 0:00:10]} 16. h3 {[%emt 0:00:04]} Bxf3 {[%emt 0:03:18]} 17. Qxf3 {[%emt 0:00:07]} Qd7 {[%emt 0:04:46]} 18. Bb4 {[%emt 0:17:38]} Rfe8 {[%emt 0:09:31]} 19. Rac1 {[%emt 0:04:02]} f5 {[%emt 0:07:40]} (19... Kg8 $14) 20. Qxf5 $16 {[%emt 0:09:01]} Qxf5 {[%emt 0:00:25]} 21. exf5 {[%emt 0:00:02]} Nh4 {[%emt 0:00:09]} 22. Ba5 {[%emt 0:15:06]} Nxf5 {[%emt 0:01:38]} 23. Bxc7 {[%emt 0:00:16]} Nxd4 {[%emt 0:01:49]} 24. Rxe8+ {[%emt 0:00:31]} (24. Bxd6 $6 Ne2+ 25. Kf1 Nxc1 26. Rxc1 Re4 $11) 24... Rxe8 {[%emt 0:00:03]} 25. Rd1 {[%emt 0:00:07]} (25. Bxd6 $2 Ne2+ 26. Kh2 Nxc1 $19) 25... Ne2+ {[%emt 0:12:06]} 26. Kf1 {[%emt 0:00:41]} Nc3 {[%emt 0:00:44]} 27. Rxd6 {[%emt 0:00:54]} Nxa2 {[%emt 0:00:48]} (27... Ne4 $16 28. Rd3 (28. Rxc6 Nd2+ 29. Kg1 Re1+ 30. Kh2 Nf1+ 31. Kh1 Ng3+ 32. Kh2 Nf1+ 33. Kh1 Ng3+ 34. Kh2 Nf1+ $11) 28... Nc5) 28. Rxc6 $18 {[%emt 0:01:08]} Nb4 {[%emt 0:00:07]} 29. Rd6 {[%emt 0:01:14]} Rc8 {[%emt 0:01:23]} 30. Ba5 {[%emt 0:01:43]} Nc6 {[%emt 0:00:09]} 31. Bc3 {[%emt 0:00:03]} Rc7 {[%emt 0:00:21]} 32. Ke2 {[%emt 0:04:11]} Kg8 {[%emt 0:00:07]} 33. Kd3 {[%emt 0:00:07]} Kf7 {[%emt 0:00:37]} 34. c5 {[%emt 0:00:10]} a5 {[%emt 0:00:41]} 35. Kc4 {[%emt 0:00:24]} a4 {[%emt 0:00:04]} 36. Kb5 {[%emt 0:02:53]} Ne7 {[%emt 0:00:54]} 37. Ba5 {[%emt 0:04:39]} (37. Kxa4 Rxc5 38. Kb3 Rc7 $14) 37... Rc8 {[%emt 0:00:26]} 38. Rd4 {[%emt 0:00:14]} (38. Kxa4 Rxc5 39. Rd7 Ke8 40. Rxe7+ (40. Rd8+ Kf7 $18) 40... Kxe7) 38... a3 {[%emt 0:00:37]} (38... Ke6 {was called for.} 39. Rd6+ (39. Kxa4 Rxc5 40. Re4+ Re5 $14) (39. Rxa4 Kd5 $18) 39... Kf7) 39. Ra4 $18 {[%emt 0:00:21]} Ke6 {[%emt 0:00:46]} 40. Rxa3 {[%emt 0:00:23]} Nc6 {[%emt 0:00:02]} 41. Bb6 {[%emt 0:02:59]} Kd5 {[%emt 0:00:05]} 42. Rd3+ {[%emt 0:00:04]} Nd4+ {[%emt 0:00:05]} 43. Ka6 {[%emt 0:00:25]} Kc4 {[%emt 0:00:37]} 44. Rg3 {[%emt 0:04:34]} Rf8 {[%emt 0:01:47]} 45. Rxg7 {[%emt 0:01:23]} Rxf2 $2 {[%emt 0:00:06]} (45... Ne6 46. Rxh7 Nxc5+ 47. Bxc5 Kxc5) 46. c6 $18 {[%emt 0:00:34]} (46. Rxh7 Rxg2 47. Rh6 Rg3 $18) 46... Ra2+ {[%emt 0:00:44]} 47. Kb7 {[%emt 0:00:07]} Nf5 {[%emt 0:00:02]} 48. Rd7 {[%emt 0:00:36]} (48. c7 $142 Nd6+ 49. Kc6) 48... Re2 {[%emt 0:00:39]} 49. g4 {[%emt 0:01:56]} (49. c7 $142 Ne7 50. Bd4 (50. c8=R+ Nxc8 51. Kxc8 Rxg2 $18) 50... Re6 51. Bf6 (51. c8=R+ Nxc8 52. Kxc8 Rg6 $18) 51... Nc8 52. Kxc8 Rxf6 53. Kb7 (53. Rxh7 Rd6 $18) 53... Rf8 54. c8=Q+ (54. c8=R+ Rxc8 55. Kxc8 h5 56. h4 Kc5 57. Rh7 Kd5 58. Rxh5+ Ke4) 54... Rxc8 55. Kxc8) 49... Ne7 $18 {[%emt 0:00:29]} 50. c7 {[%emt 0:00:04]} Kb5 {[%emt 0:00:47]} 51. Bd4 {[%emt 0:00:06]} Re6 {[%emt 0:00:28]} 52. Rxe7 {[%emt 0:00:43]} Rxe7 {[%emt 0:00:12]} 53. Kb8 {[%emt 0:00:02]} 1-0